Cogmind - Beta 15 @@@ ROGUE MODE // 2025.08.29 @ 11:58:15 Player: beans Result: Destroyed by G-47 Trooper with Particle Gun Performance ------------- Evolutions (2) 1000 Regions Visited (3) 600 Robots Destroyed (79) 395 Value Destroyed (2102) 2102 Prototype IDs (0) 0 Alien Tech Used (0) 0 Bonus (206) 206 TOTAL SCORE: 4303 Bonus ------- High Alert Combat Kills 206 Cogmind --------- Core Integrity 0/550 Matter 163/300 Energy 42/100 System Corruption 0% Temperature Danger (456) Movement Core (50) Location -8/Materials Parts ------- > --- POWER (1) -------- (None) > --- PROPULSION (2) --- (None) > --- UTILITY (4) ------ Advanced Visual Processing Unit Targeting Computer Targeting Computer > --- WEAPON (4) ------- (None) > --- INVENTORY (5) ---- Large Storage Unit Peak State ------------ > --- POWER ------------ (None) > --- PROPULSION ------- Aluminum Leg > --- UTILITY ---------- Advanced Visual Processing Unit Targeting Computer Targeting Computer Hacking Suite > --- WEAPON ----------- Heavy Assault Rifle Heavy Assault Cannon Mini Grenade Launcher > --- INVENTORY -------- Large Storage Unit [Rating: 19] Favorites ----------- Power Ion Engine Engine Ion Engine Propulsion Light Treads Treads Light Treads Leg Aluminum Leg Utility Targeting Computer Storage High-capacity Matter Pod Processor Targeting Computer Hackware Hacking Suite Weapon Light Cannon Energy Cannon Heavy Particle Cannon Ballistic Gun Light Assault Rifle Ballistic Cannon Light Cannon Launcher Mini Grenade Launcher Slashing Weapon Scythe Build | -11 -10 -9 -8 ------- Run | Yrd Mat Mat Mat Slots Evolved 4 | . . 2 2 Power . | . . . . Propulsion . | . . . . Utility 2 | . . 2 . Weapon 2 | . . . 2 Parts Attached 28 | 5 2 9 12 Power 1 | 1 . . . Engine 1 | 1 . . . Core . | . . . . Reactor . | . . . . Propulsion 4 | 2 . . 2 Treads 3 | 2 . . 1 Leg 1 | . . . 1 Wheel . | . . . . Hover . | . . . . Flight . | . . . . Utility 9 | . 2 3 4 Device . | . . . . Storage 2 | . . 2 . Processor 6 | . 2 1 3 Hackware 1 | . . . 1 Protection . | . . . . Artifact . | . . . . Weapon 14 | 2 . 6 6 Energy Gun . | . . . . Energy Cannon 1 | . . . 1 Ballistic Gun 4 | 2 . 1 1 Ballistic Cannon 7 | . . 4 3 Launcher 1 | . . . 1 Special Weapon . | . . . . Impact Weapon . | . . . . Slashing Weapon 1 | . . 1 . Piercing Weapon . | . . . . Special Melee Weapon . | . . . . Unidentified Prototypes . | . . . . Parts Lost 20 | . 1 4 15 Power 1 | . 1 . . Propulsion 4 | . . 1 3 Utility 4 | . . . 4 Weapon 11 | . . 3 8 Highest Loss Streak 7 | . 1 2 7 To Critical Strikes 1 | . . 1 . Average Backups 3 | . . 3 3 Power . | . . . . Propulsion . | . . . . Utility 1 | . . 1 2 Weapon 1 | . . 2 . Tool/Special . | . . . . Unused Backups 1 | . . . 1 Power . | . . . . Propulsion . | . . . . Utility 1 | . . . 1 Weapon . | . . . . Tool/Special . | . . . . Average Slot Usage (%) 67 | . 70 74 61 Treads 9 | . 28 12 1 Leg 1 | . . . 3 Storage 11 | . . 19 9 Processor 19 | . 7 22 22 Hackware 1 | . . . 2 Ballistic Gun 7 | . 28 2 3 Ballistic Cannon 12 | . . 17 12 Launcher 2 | . . . 5 Peak Build Rating 19 | 5 6 10 19 Average Rating 8 | 3 4 7 11 On Entrance 4 | . 5 6 8 Naked Turns . | . . . . Heaviest Build 17 | 8 8 14 17 Greatest Support 40 | 40 40 40 20 Greatest Overweight (x) 5 | . . . 5 Average Overweight (x) . | . . . 1 Largest Inventory Capacity 5 | 5 5 5 5 Average Capacity 5 | 5 5 5 5 Most Carried 5 | 2 3 5 5 Average Carried 3 | . 1 3 3 Final Capacity 5 | 5 5 5 5 Final Carried 5 | . 3 5 1 Class Distribution -------------------- 68% | Mutant 31% | Gunner Dominant Class ---------------- Mutant | -10/Materials Mutant | -9/Materials Gunner | -8/Materials Resources | -11 -10 -9 -8 ----------- Run | Yrd Mat Mat Mat Matter Collected 1750 | 139 99 735 777 Remotely . | . . . . Salvage Created 2221 | . 219 680 1322 Parts 117 | . 12 39 66 Haulers Intercepted 3 | . . 2 1 Recyclers Shooed 2 | . . 1 1 Parts Field Recycled . | . . . . Retrieved Matter . | . . . . Parts Self-Destructed . | . . . . Prevented . | . . . . Kills | -11 -10 -9 -8 ------- Run | Yrd Mat Mat Mat Combat Hostiles Destroyed 48 | . 4 11 33 Melee 1 | . . 1 . Guns 5 | . 4 . 1 Cannons 26 | . . 10 16 AOE 16 | . . . 16 Classes Destroyed 12 | . 3 6 3 Worker 7 | . 1 2 4 Builder 4 | . . 2 2 Tunneler 5 | . 1 3 1 Hauler 3 | . . 2 1 Recycler 7 | . . 3 4 Operator 1 | . . . 1 Watcher 4 | . . 1 3 Swarmer 10 | . . 3 7 Grunt 26 | . 4 4 18 Brawler 1 | . . . 1 Sentry 9 | . . 4 5 Hunter 2 | . . . 2 Best Kill Streak 8 | . 3 7 8 Combat Bots Only 5 | . 2 3 5 Max Kills in Single Turn 4 | . 1 1 4 Gunslinging . | . . . . Exploded 2 | . . . 2 Melee 1 | . . 1 . Uniques/NPCs Destroyed . | . . . . Combat | -11 -10 -9 -8 -------- Run | Yrd Mat Mat Mat Hostile Shots Fired 287 | . 48 68 171 Missed 74 | . 15 13 46 Hits 213 | . 33 55 125 Projectile 213 | . 33 55 125 Critical Strikes 11 | . 2 3 6 Damage Taken 2851 | . 419 609 1823 Core 716 | . 58 107 551 Absorbed by Shields . | . . . . Core Remaining (%) 83 | 100 76 73 . Volleys Fired 158 | . 27 46 85 Largest 3 | . 2 2 3 Hottest 135 | . 40 60 135 Shots Fired 292 | . 54 89 149 Gun 77 | . 54 . 23 Cannon 194 | . . 89 105 Launcher 21 | . . . 21 Special . | . . . . Kinetic 258 | . 54 89 115 Thermal 13 | . . . 13 Explosive 21 | . . . 21 Electromagnetic . | . . . . Robot Hit Streak 27 | . 7 17 27 Robot Miss Streak 10 | . 5 3 10 Penetration Max . | . . . . Secondary Targets 1 | . 1 . . Max Gunslinging Chain 1 | . 1 . . Shots Hit Robots 192 | . 30 68 94 Core Hits 130 | . 16 26 88 Critical Kills 1 | . 1 . . Critical Parts Destroyed 1 | . . . 1 Critical Strikes 10 | . 1 5 4 Destroy 2 | . 1 . 1 Blast 8 | . . 5 3 Melee Attacks 3 | . . 3 . Impact . | . . . . Slashing 3 | . . 3 . Piercing . | . . . . Sneak Attacks 2 | . . 2 . Combat Hostiles . | . . . . Follow-up Attacks . | . . . . Damage Inflicted 5819 | . 377 1297 4145 Guns 561 | . 377 . 184 Cannons 3297 | . . 1136 2161 Explosions 1800 | . . . 1800 Melee 161 | . . 161 . Ramming . | . . . . Kinetic 3608 | . 377 1136 2095 Thermal 336 | . . . 336 Explosive 1714 | . . . 1714 Electromagnetic . | . . . . Impact . | . . . . Slashing 161 | . . 161 . Piercing . | . . . . Highest Corruption . | . . . . Average Corruption . | . . . . Corruption Purged . | . . . . Corruption Blocked . | . . . . Overload Shots . | . . . . Overflow Damage 185 | . . 25 160 Projectiles 94 | . . . 94 Explosions 66 | . . . 66 Melee 25 | . . 25 . Knockbacks 23 | . . 3 20 Impact . | . . . . Kinetic 19 | . . 3 16 Secondary 4 | . . . 4 Self-Inflicted Damage 107 | . . . 107 Shots 4 | . . . 4 Rammed . | . . . . Targets Rammed . | . . . . Kicked . | . . . . Crushed . | . . . . Highest Temperature 460 | . 24 19 460 Average Temperature 55 | . 9 4 75 Received Heat Transfer 1248 | . 276 126 846 Siege Activations . | . . . . Martial Activations . | . . . . Shielding Activations . | . . . . Robots Disrupted . | . . . . Combat Hostiles . | . . . . Robots Corrupted . | . . . . Combat Hostiles . | . . . . Parts Fried . | . . . . Impact Corruptions . | . . . . Robots Melted . | . . . . Combat Hostiles . | . . . . Parts Melted . | . . . . Heat Transferred 470 | . . . 470 Parts Sabotaged . | . . . . Parts Stolen . | . . . . Parts Stripped . | . . . . Power Chain Reactions . | . . . . Alert | -11 -10 -9 -8 ------- Run | Yrd Mat Mat Mat Maximum Alert Level 3 | . . . 3 Low Security (%) 78 | 100 100 100 51 Level 1 7 | . . . 16 Level 2 7 | . . . 17 Level 3 6 | . . . 14 Level 4 . | . . . . Level 5 . | . . . . High Security . | . . . . Max Security . | . . . . Peak Influence 769 | . 70 172 769 Initial 64 | . . 8 64 Average 160 | . 25 93 272 Influence Increases 1721 | . 110 439 1172 Destroy 0b10 Robot/C 960 | . 80 220 660 Destroy 0b10 Robot/NC 155 | . 10 65 80 Destroy Leader 264 | . 20 76 168 Disable Machine 135 | . . 15 120 Destroy Structure 147 | . . 3 144 Lose Combat Pursuer 60 | . . 60 . Influence Decreases 978 | . 90 306 582 Entered New Map 101 | . . 12 89 Time Decay 707 | . 90 274 343 Lost Part 170 | . . 20 150 Squads Dispatched 10 | . . 2 8 Investigation 2 | . . 1 1 Extermination . | . . . . Reinforcement 8 | . . 1 7 Assault . | . . . . Garrison . | . . . . Intercept . | . . . . Searches Triggered . | . . . . Construction Impeded 3 | . . . 3 Haulers Reinforced . | . . . . Active Scanning Responses . | . . . . Cargo Convoy Interrupts . | . . . . Stealth | -11 -10 -9 -8 --------- Run | Yrd Mat Mat Mat Distress Signals 4 | . . 1 3 Communications Jammed . | . . . . Distress Signals . | . . . . Times Spotted 68 | . 6 18 44 Peak Tracking Total 7 | . 4 4 7 Tactical Retreats 2 | . . 2 . Traps | -11 -10 -9 -8 ------- Run | Yrd Mat Mat Mat Traps Triggered 2 | . . 1 1 Indirectly . | . . . . Trap Hack Attempts . | . . . . Triggered . | . . . . Disarmed . | . . . . Reprogrammed . | . . . . Reused . | . . . . Traps Extracted . | . . . . Installed . | . . . . Triggered . | . . . . Machines | -11 -10 -9 -8 ---------- Run | Yrd Mat Mat Mat Machines Disabled 9 | . . 1 8 Max in Single Turn 2 | . . 1 2 Machines Repaired . | . . . . Machines Dismantled . | . . . . Machines Sabotaged . | . . . . Overloaded Fab Kills . | . . . . Hacking | -11 -10 -9 -8 --------- Run | Yrd Mat Mat Mat Machines Accessed 3 | . 1 1 1 Terminals . | . . . . Fabricators . | . . . . Repair Stations . | . . . . Recycling Units 1 | . 1 . . Scanalyzers 2 | . . 1 1 Garrison Access . | . . . . Total Hacks 6 | . 1 2 3 Successful 5 | . 1 2 2 Failed 1 | . . . 1 Catastrophic . | . . . . Database Lockouts . | . . . . Manual . | . . . . Terminals . | . . . . Fabricators . | . . . . Repair Stations . | . . . . Recycling Units 1 | . 1 . . Scanalyzers 5 | . . 2 3 Garrison Access . | . . . . Terminal Hacks . | . . . . Fabricator Hacks . | . . . . Repair Station Hacks . | . . . . Recycling Unit Hacks 1 | . 1 . . Retrieve Components 1 | . 1 . . Scanalyzer 4 | . . 2 2 Insert Component 2 | . . 1 1 Analyze 2 | . . 1 1 Garrison Access Hacks . | . . . . Unauthorized Hacks . | . . . . Terminals . | . . . . Fabricators . | . . . . Repair Stations . | . . . . Recycling Units . | . . . . Scanalyzers . | . . . . Garrison Access . | . . . . Data Cores Recovered . | . . . . Used . | . . . . Hacking Detections . | . . . . Full Trace Events . | . . . . Feedback Events . | . . . . Feedback Blocked . | . . . . Robot Schematics Acquired . | . . . . Robots Built . | . . . . Authchips . | . . . . Time . | . . . . Total Robot Build Rating . | . . . . Part Schematics Acquired 2 | . . 1 1 Parts Built . | . . . . Authchips . | . . . . Time . | . . . . Total Part Build Rating . | . . . . Parts Repaired . | . . . . Time . | . . . . Parts Recycled . | . . . . Recycled Matter . | . . . . Retrieved Matter . | . . . . Retrieved Components . | . . . . Parts Scanalyzed 2 | . . 1 1 Part Schematics Acquired 2 | . . 1 1 Parts Damaged . | . . . . Bothacking | -11 -10 -9 -8 ------------ Run | Yrd Mat Mat Mat Used RIF Installer . | . . . . Robots Hacked . | . . . . Non-combat . | . . . . Combat . | . . . . Robot Hacks Applied . | . . . . Relay Couplers Released . | . . . . Fabnet Peak Effective % . | . . . . Robots Rewired . | . . . . Allies Hacked . | . . . . Hacks Repelled . | . . . . Allies | -11 -10 -9 -8 -------- Run | Yrd Mat Mat Mat Total Allies . | . . . . Largest Group . | . . . . Highest-Rated Group . | . . . . Highest-Rated Ally . | . . . . Total Orders . | . . . . Ally Attacks . | . . . . Total Damage . | . . . . Kills . | . . . . Allies Corrupted . | . . . . Allies Melted . | . . . . Intel | -11 -10 -9 -8 ------- Run | Yrd Mat Mat Mat Active Infowar (turns) 239 | . . . 239 Optics 239 | . . . 239 Robot Analysis Total . | . . . . Derelict Logs Recovered . | . . . . Drone Launches . | . . . . Drone Recoveries . | . . . . Exploration | -11 -10 -9 -8 ------------- Run | Yrd Mat Mat Mat Turns Passed 1931 | 63 304 687 877 Spaces Moved 821 | 38 138 325 320 Core 101 | 6 . . 95 Treads 568 | 32 138 325 73 Legs 152 | . . . 152 Wheels . | . . . . Hover . | . . . . Flight . | . . . . Fastest Speed 50 | 50 160 160 50 Average Speed 171 | 142 160 160 192 Slowest Speed 300 | 160 160 160 300 Overloaded Moves . | . . . . Propulsion Burnouts . | . . . . Robots Hopped . | . . . . Potential Cave-ins . | . . . . Cave-ins Triggered . | . . . . Exploration Rate (%) 33 | 3 47 33 51 Regions Visited 3 Branch Regions . Pre-discovered Areas . | . . . . Known Exits Taken . | . . . . Unknown Exits Taken 3 | 1 1 1 . Scrap Searched . | . . . . Spaces Dug 6 | . . . 6 Terrain Destroyed 150 | . . . 150 Melee . | . . . . Projectile 16 | . . . 16 AOE 134 | . . . 134 Terrain Rammed . | . . . . Walls Destroyed . | . . . . Machines Disabled . | . . . . Actions | -11 -10 -9 -8 --------- Run | Yrd Mat Mat Mat Total 1051 | 47 173 399 432 Wait 4 | . 2 . 2 Move 818 | 37 137 324 320 Hop . | . . . . Pick Up 26 | 5 5 11 5 Fast Attach 3 | . . . 3 Attach 27 | 5 2 8 12 Detach 3 | . . . 3 Swap 4 | . . 3 1 Drop 5 | . . 4 1 Fire 158 | . 27 46 85 Melee 3 | . . 3 . Ram . | . . . . Kick . | . . . . Crush . | . . . . Escape Stasis . | . . . . Rewire . | . . . . Trap . | . . . . Miscellaneous . | . . . . Route ------- -11/Scrapyard -10/Materials (discovered 3 exits: *Mat x2 / [*Min]) -9/Materials -8/Materials History --------- Turn | Location | Event 9 | -11/Scrapyard | Discovered new exit (range 15) 64 | -11/Scrapyard | Entered Materials 171 | -10/Materials | Discovered new exit (range 15) 247 | -10/Materials | Discovered new exit (range 16) 307 | -10/Materials | Build established: Mutant 357 | -10/Materials | Discovered new exit (range 7) 368 | -10/Materials | Entered another Materials area 368 | -9/Materials | Evolved 2 slots: Utility x2 971 | -9/Materials | Discovered new exit (range 16) 1055 | -9/Materials | Entered another Materials area 1055 | -8/Materials | Evolved 2 slots: Weapon x2 1460 | -8/Materials | Lost 3 parts (1n1u1w) 1726 | -8/Materials | Core integrity fell below 50% 1737 | -8/Materials | Build established: Gunner 1930 | -8/Materials | Core integrity fell below 20% 1932 | -8/Materials | Destroyed by G-47 Trooper with Particle Gun Last Messages --------------- dispatching reinforcements to local area. Y-45 Defender destroyed. H-55 Commando knocked back. H-55 Commando destroyed. G-47 Trooper knocked back. G-47 Trooper destroyed. G-47 Trooper knocked back. Hacking Suite destroyed. G-47 Trooper knocked back. Critical hit (Burn: +37). G-47 Trooper suffers critical hit (Destroy). Destroyed Imp. Heat Sink. G-47 Trooper knocked back. Hvy. Assault Rifle destroyed. Critical hit (Burn: +37). Aluminum Leg destroyed. Flak Cannon destroyed. Hvy. Assault Cannon destroyed. G-47 Trooper destroyed. Hvy. Particle Cannon destroyed. Map ----- +----------------------------------------------------+ | ???????????????# [ #?? | | ???????????????# = #?? | | ?????????????###### = # #### #?? | | ?????????????# ####??#######?? | | ?????????????+ #?????????????? | | ?????????????# #?????????????? | | ?????????????# #?????????????? | | ?????????????# #?????????????? | | ?????????????# #?????????????? | | ?????????????# = #?????????????? | | ?????????????# =%* #?????????????? | | ?????????#########!""#+#?????????????? | | ????????? ? #%! #?????????????? | | ????????? T?#[[ #?????????????? | | ??????# """ """ ??# #?????????????? | | ??????? """ """???# ####??????????? | | ????????""" ""??? # !##?????????? | | ??????????? ???? + !#?????????? | | ??????????? ??? # !#?????????? | | ??????????##;###+## !#?????????? | | ??????????# Y !#?????????? | | ??????????# !##?????????? | | ??????????# ####??????????? | | ??????????#!% #?????????????? | | ??????????# ##########?????????????? | | ??????????# @#??????????????????????? | | ??????????# #??????????????????????? | | ????????? /g%g#??????????????????????? | | ??????? u#g #??????????????????????? | | ????? #g ??????????????????????? | | ????#####?# ??????????????????????? | | ?????????? ??????????????????????? | | ?????????? ??????????????????????? | | ????????? |! ??????????????????????? | | ????????? |! ??????????????????????? | | ????????# ?????????????????????? | | ????????# ?????????????????????? | | ????????# ?????????????????????? | | ????????# """""?????????????????????? | | ????????# """""?????????????????????? | | ????????# """""?????????????????????? | | ????????+ ??????????????????????????? | | ????????# ??????????????????????????? | | ?????????#???????????????????????????? | | ?????????????????????????????????????? | | ?????????????????????????????????????? | | ?????????????????????????????????????? | | ?????????????????????????????????????? | | ?????????????????????????????????????? | | ?????????????????????????????????????? | +----------------------------------------------------+ Best States ------------- Heat Dissipation 31 Energy Generation 10 Energy Capacity 250 Matter Stores 521 Matter Capacity 700 Sight Range 20 Terrain Scan Density 10 Evasion (%) 45 Targeting Accuracy 15 Recoil Reduction 2 Offensive Hacking 10 Item Schematics ----------------- Hcp. Matter Pod | -9/Materials | Scanalyzed Hvy. Assault Cannon | -8/Materials | Scanalyzed Robot Schematics ------------------ None Fabricated ------------ Nothing Repaired ---------- Nothing Alien Tech Used ----------------- None Achievements -------------- None Challenges ------------ None Game ------ Seed MyomerDroneProcessor Manual? 0 Play Time 00:14:31 Cumulative 110.9 hours Start 2025.08.29 @ 11:46:25 End 2025.08.29 @ 11:58:15 Sessions 1 Manual Loads 0 Difficulty Rogue Special Mode None Game No. 411 Rogue 411 Adventurer 0 Explorer 0 Win Type - Total 0 Types 0/0/0/0/0/0/0/0/0/0 Lore% 44 Gallery% 43 Achievement% 31 Wizard Run 0 Options --------- Layout 2 ASCII 0 Keyboard 0 Movement Mouse Keybinds 0 Fullscreen 2 Font 24/Smallcaps Map View 50x44 Zoom Use 0% Tactical HUD 0 Map Filters NONE Filters NONE Steam 1 RUN: 7331a6cd-f644-4e86-9a43-d5a94942d700